[Event "Titled Tuesday Blitz April 05 Late 2022"]
[White "Sarana, Alexey"]
[Black "Sanal, Vahap"]
[WhiteFideId "24133795"]
[BlackFideId "6300545"]
[WhiteElo "2666"]
[BlackElo "2603"]
[Result "1-0"]
[Round "10"]
[TimeControl "180+1"]
[Date "2022.04.05"]
[WhiteClock "0:00:07"]
[BlackClock "0:00:08"]

1. d4 {[%clk 0:03:00]}  Nf6 {[%clk 0:02:57]} 2. c4 {[%clk 0:03:01]}  e6 {[%clk 0:02:57]} 3. Nc3 {[%clk 0:03:02]}  Bb4 {[%clk 0:02:57]} 4. e3 {[%clk 0:03:02]}  c5 {[%clk 0:02:51]} 5. Bd3 {[%clk 0:03:02]}  Nc6 {[%clk 0:02:49]} 6. Ne2 {[%clk 0:02:59]}  d5 {[%clk 0:02:48]} 7. a3 {[%clk 0:02:53]}  dxc4 {[%clk 0:02:41]} 8. Bxc4 {[%clk 0:02:53]}  Bxc3+ {[%clk 0:02:40]} 9. bxc3 {[%clk 0:02:52]}  O-O {[%clk 0:02:40]} 10. O-O {[%clk 0:02:52]}  Qc7 {[%clk 0:02:41]} 11. Bd3 {[%clk 0:02:51]}  b6 {[%clk 0:02:40]} 12. e4 {[%clk 0:02:46]}  e5 {[%clk 0:02:39]} 13. d5 {[%clk 0:02:45]}  Ne7 {[%clk 0:02:35]} 14. Bg5 {[%clk 0:02:44]}  Qd6 {[%clk 0:02:29]} 15. f4 {[%clk 0:02:43]}  Ng4 {[%clk 0:02:22]} 16. h3 {[%clk 0:02:12]}  f6 {[%clk 0:02:22]} 17. hxg4 {[%clk 0:02:11]}  fxg5 {[%clk 0:02:21]} 18. f5 {[%clk 0:02:09]}  Bd7 {[%clk 0:02:10]} 19. Ng3 {[%clk 0:02:05]}  c4 {[%clk 0:02:09]} 20. Bc2 {[%clk 0:01:25]}  Qc5+ {[%clk 0:02:09]} 21. Rf2 {[%clk 0:01:26]}  Nc8 {[%clk 0:02:09]} 22. Qd2 {[%clk 0:01:21]}  h6 {[%clk 0:02:09]} 23. Kh2 {[%clk 0:01:19]}  Nd6 {[%clk 0:02:09]} 24. a4 {[%clk 0:01:16]}  Ne8 {[%clk 0:02:00]} 25. Rff1 {[%clk 0:01:08]}  Nf6 {[%clk 0:02:00]} 26. Qe2 {[%clk 0:01:08]}  Be8 {[%clk 0:01:53]} 27. Rad1 {[%clk 0:00:48]}  Qe3 {[%clk 0:01:48]} 28. Qf3 {[%clk 0:00:48]}  Qc5 {[%clk 0:01:43]} 29. Rd2 {[%clk 0:00:36]}  Bf7 {[%clk 0:01:43]} 30. Rfd1 {[%clk 0:00:28]}  Rfd8 {[%clk 0:01:43]} 31. Nf1 {[%clk 0:00:27]}  a6 {[%clk 0:01:41]} 32. Qg3 {[%clk 0:00:26]}  Re8 {[%clk 0:01:38]} 33. d6 {[%clk 0:00:25]}  Rad8 {[%clk 0:01:38]} 34. Kh1 {[%clk 0:00:24]}  Rd7 {[%clk 0:01:31]} 35. Qe3 {[%clk 0:00:21]}  Qc6 {[%clk 0:01:29]} 36. a5 {[%clk 0:00:18]}  b5 {[%clk 0:01:25]} 37. Qg3 {[%clk 0:00:14]}  Nxe4 {[%clk 0:01:12]} 38. Bxe4 {[%clk 0:00:14]}  Qxe4 {[%clk 0:01:13]} 39. Ne3 {[%clk 0:00:14]}  Red8 {[%clk 0:01:14]} 40. Qf3 {[%clk 0:00:11]}  Qf4 {[%clk 0:01:10]} 41. Nd5 {[%clk 0:00:06]}  Bxd5 {[%clk 0:01:06]} 42. Rxd5 {[%clk 0:00:04]}  e4 {[%clk 0:01:07]} 43. Qxf4 {[%clk 0:00:05]}  gxf4 {[%clk 0:01:08]} 44. Kg1 {[%clk 0:00:05]}  Kf7 {[%clk 0:01:03]} 45. Kf2 {[%clk 0:00:05]}  Kf6 {[%clk 0:01:04]} 46. g3 {[%clk 0:00:06]}  Kg5 {[%clk 0:00:55]} 47. R1d4 {[%clk 0:00:06]}  Re8 {[%clk 0:00:54]} 48. f6+ {[%clk 0:00:05]}  Kxg4 {[%clk 0:00:54]} 49. fxg7 {[%clk 0:00:06]}  fxg3+ {[%clk 0:00:51]} 50. Kg2 {[%clk 0:00:05]}  Kf4 {[%clk 0:00:42]} 51. Rh5 {[%clk 0:00:05]}  Rxg7 {[%clk 0:00:39]} 52. Rxh6 {[%clk 0:00:04]}  Ke3 {[%clk 0:00:33]} 53. d7 {[%clk 0:00:01]}  Rd8 {[%clk 0:00:33]} 54. Re6 {[%clk 0:00:02]}  Rg4 {[%clk 0:00:33]} 55. Re8 {[%clk 0:00:03]}  Rxd7 {[%clk 0:00:29]} 56. Rxd7 {[%clk 0:00:04]}  Rf4 {[%clk 0:00:27]} 57. Rd4 {[%clk 0:00:04]}  b4 {[%clk 0:00:26]} 58. Rxc4 {[%clk 0:00:05]}  b3 {[%clk 0:00:26]} 59. Rb4 {[%clk 0:00:05]}  Kd2 {[%clk 0:00:20]} 60. Rxb3 {[%clk 0:00:05]}  e3 {[%clk 0:00:20]} 61. Rb4 {[%clk 0:00:05]}  Rxb4 {[%clk 0:00:06]} 62. cxb4 {[%clk 0:00:06]}  e2 {[%clk 0:00:07]} 63. b5 {[%clk 0:00:06]}  axb5 {[%clk 0:00:07]} 64. a6 {[%clk 0:00:06]}  b4 {[%clk 0:00:08]} 65. a7 {[%clk 0:00:07]} 1-0


[Site "https://www.chess.com"]

[Event "Titled Tuesday Blitz April 05 Late 2022"]
[White "Sarkar, Justin"]
[Black "Winkels, Marcel"]
[WhiteFideId "2010011"]
[BlackFideId "1003887"]
[WhiteElo "2038"]
[BlackElo "1900"]
[Result "1-0"]
[Round "10"]
[TimeControl "180+1"]
[Date "2022.04.06"]
[WhiteClock "0:00:08"]
[BlackClock "0:01:07"]

1. e4 {[%clk 0:02:49]}  c5 {[%clk 0:02:58]} 2. Nf3 {[%clk 0:02:49]}  d6 {[%clk 0:02:59]} 3. d4 {[%clk 0:02:48]}  cxd4 {[%clk 0:02:59]} 4. Nxd4 {[%clk 0:02:48]}  Nf6 {[%clk 0:03:00]} 5. Nc3 {[%clk 0:02:48]}  a6 {[%clk 0:03:00]} 6. Be3 {[%clk 0:02:41]}  e5 {[%clk 0:02:58]} 7. Nb3 {[%clk 0:02:39]}  Be6 {[%clk 0:02:59]} 8. h3 {[%clk 0:02:33]}  Be7 {[%clk 0:02:52]} 9. Qf3 {[%clk 0:02:30]}  b5 {[%clk 0:02:38]} 10. g4 {[%clk 0:02:15]}  b4 {[%clk 0:02:37]} 11. Nd5 {[%clk 0:02:00]}  Nxd5 {[%clk 0:02:34]} 12. exd5 {[%clk 0:02:00]}  Bd7 {[%clk 0:02:34]} 13. a3 {[%clk 0:01:55]}  bxa3 {[%clk 0:02:28]} 14. Rxa3 {[%clk 0:01:55]}  O-O {[%clk 0:02:28]} 15. Bd3 {[%clk 0:01:49]}  a5 {[%clk 0:02:23]} 16. h4 {[%clk 0:01:24]}  a4 {[%clk 0:02:22]} 17. Nd2 {[%clk 0:01:24]}  Na6 {[%clk 0:02:18]} 18. h5 {[%clk 0:01:18]}  Nb4 {[%clk 0:02:17]} 19. Be4 {[%clk 0:00:37]}  Rc8 {[%clk 0:02:14]} 20. c3 {[%clk 0:00:36]}  Na6 {[%clk 0:02:13]} 21. Bf5 {[%clk 0:00:24]}  g6 {[%clk 0:01:58]} 22. hxg6 {[%clk 0:00:15]}  fxg6 {[%clk 0:01:58]} 23. Qh3 {[%clk 0:00:15]}  Rf7 {[%clk 0:01:57]} 24. Be6 {[%clk 0:00:14]}  Bxe6 {[%clk 0:01:51]} 25. dxe6 {[%clk 0:00:14]}  Rg7 {[%clk 0:01:51]} 26. Bh6 {[%clk 0:00:14]}  Nc5 {[%clk 0:01:44]} 27. Bxg7 {[%clk 0:00:12]}  h5 {[%clk 0:01:23]} 28. gxh5 {[%clk 0:00:11]}  Kxg7 {[%clk 0:01:22]} 29. hxg6 {[%clk 0:00:11]}  Qh8 {[%clk 0:01:21]} 30. Qxh8+ {[%clk 0:00:09]}  Rxh8 {[%clk 0:01:20]} 31. Rxh8 {[%clk 0:00:08]}  Kxh8 {[%clk 0:01:20]} 32. Ke2 {[%clk 0:00:08]}  Kg7 {[%clk 0:01:19]} 33. c4 {[%clk 0:00:08]}  Kxg6 {[%clk 0:01:19]} 34. Rg3+ {[%clk 0:00:06]}  Kf6 {[%clk 0:01:19]} 35. f3 {[%clk 0:00:06]}  Kxe6 {[%clk 0:01:19]} 36. Ne4 {[%clk 0:00:05]}  Nb3 {[%clk 0:01:16]} 37. Rg6+ {[%clk 0:00:05]}  Kd7 {[%clk 0:01:16]} 38. Nf6+ {[%clk 0:00:04]}  Ke6 {[%clk 0:01:14]} 39. Nd5+ {[%clk 0:00:04]}  Kd7 {[%clk 0:01:13]} 40. Rg7 {[%clk 0:00:04]}  Nd4+ {[%clk 0:01:13]} 41. Kf2 {[%clk 0:00:04]}  Nc6 {[%clk 0:01:14]} 42. Rh7 {[%clk 0:00:04]}  Ke6 {[%clk 0:01:12]} 43. Nxe7 {[%clk 0:00:04]}  Nxe7 {[%clk 0:01:12]} 44. Rh6+ {[%clk 0:00:04]}  Kd7 {[%clk 0:01:11]} 45. Rh8 {[%clk 0:00:04]}  Nc6 {[%clk 0:01:11]} 46. Ra8 {[%clk 0:00:04]}  e4 {[%clk 0:01:07]} 47. fxe4 {[%clk 0:00:04]}  Ne5 {[%clk 0:01:07]} 48. Rxa4 {[%clk 0:00:04]}  Kc6 {[%clk 0:01:06]} 49. Ke3 {[%clk 0:00:03]}  Kc5 {[%clk 0:01:06]} 50. b3 {[%clk 0:00:03]}  Nc6 {[%clk 0:01:05]} 51. Ra8 {[%clk 0:00:03]}  Ne5 {[%clk 0:01:04]} 52. Rc8+ {[%clk 0:00:03]}  Kb4 {[%clk 0:01:04]} 53. Rb8+ {[%clk 0:00:03]}  Kc5 {[%clk 0:01:04]} 54. Rb5+ {[%clk 0:00:04]}  Kc6 {[%clk 0:01:03]} 55. Rxe5 {[%clk 0:00:04]}  dxe5 {[%clk 0:01:03]} 56. b4 {[%clk 0:00:04]}  Kb6 {[%clk 0:01:03]} 57. Kf3 {[%clk 0:00:05]}  Kc6 {[%clk 0:01:02]} 58. Kg4 {[%clk 0:00:05]}  Kd6 {[%clk 0:01:03]} 59. Kf5 {[%clk 0:00:06]}  Kc6 {[%clk 0:01:02]} 60. Kxe5 {[%clk 0:00:06]}  Kd7 {[%clk 0:01:03]} 61. Kd5 {[%clk 0:00:06]}  Ke8 {[%clk 0:01:04]} 62. e5 {[%clk 0:00:07]}  Kd7 {[%clk 0:01:05]} 63. e6+ {[%clk 0:00:07]}  Kd8 {[%clk 0:01:06]} 64. Kd6 {[%clk 0:00:07]}  Ke8 {[%clk 0:01:07]} 65. e7 {[%clk 0:00:08]}  Kf7 {[%clk 0:01:06]} 66. Kd7 {[%clk 0:00:08]}  Kf6 {[%clk 0:01:07]} 67. e8=Q {[%clk 0:00:08]} 1-0


[Site "https://www.chess.com"]

[Event "Titled Tuesday Blitz April 05 Late 2022"]
[White "Spata, German"]
[Black "Korchmar, Vasiliy"]
[WhiteFideId "113026"]
[BlackFideId "24131750"]
[WhiteElo "2238"]
[BlackElo "2370"]
[Result "0-1"]
[Round "10"]
[TimeControl "180+1"]
[Date "2022.04.05"]
[WhiteClock "0:00:02"]
[BlackClock "0:00:47"]

1. e4 {[%clk 0:02:54]}  c5 {[%clk 0:03:00]} 2. b3 {[%clk 0:02:53]}  e6 {[%clk 0:02:54]} 3. Bb2 {[%clk 0:02:53]}  a6 {[%clk 0:02:54]} 4. f4 {[%clk 0:02:50]}  Nc6 {[%clk 0:02:54]} 5. Nf3 {[%clk 0:02:50]}  d5 {[%clk 0:02:53]} 6. exd5 {[%clk 0:02:49]}  exd5 {[%clk 0:02:53]} 7. Nc3 {[%clk 0:02:41]}  Nf6 {[%clk 0:02:53]} 8. Qe2+ {[%clk 0:02:38]}  Be7 {[%clk 0:02:53]} 9. O-O-O {[%clk 0:02:38]}  O-O {[%clk 0:02:52]} 10. h3 {[%clk 0:02:28]}  b5 {[%clk 0:02:47]} 11. Ne5 {[%clk 0:02:20]}  Nd4 {[%clk 0:02:44]} 12. Qf2 {[%clk 0:02:10]}  Bf5 {[%clk 0:02:33]} 13. Bd3 {[%clk 0:01:58]}  Ne4 {[%clk 0:02:28]} 14. Bxe4 {[%clk 0:01:54]}  dxe4 {[%clk 0:02:21]} 15. g4 {[%clk 0:01:49]}  Be6 {[%clk 0:02:20]} 16. Nxe4 {[%clk 0:01:43]}  f6 {[%clk 0:02:20]} 17. Nf3 {[%clk 0:01:23]}  Nxf3 {[%clk 0:02:04]} 18. Qxf3 {[%clk 0:01:24]}  c4 {[%clk 0:02:05]} 19. Rhe1 {[%clk 0:01:17]}  Rc8 {[%clk 0:01:58]} 20. Nxf6+ {[%clk 0:00:59]}  Rxf6 {[%clk 0:01:16]} 21. Bxf6 {[%clk 0:00:58]}  cxb3 {[%clk 0:01:16]} 22. axb3 {[%clk 0:00:36]}  Bxf6 {[%clk 0:01:15]} 23. Rxe6 {[%clk 0:00:17]}  Qa5 {[%clk 0:01:15]} 24. d4 {[%clk 0:00:13]}  Qa1+ {[%clk 0:00:47]} 25. Kd2 {[%clk 0:00:13]}  Qxd4+ {[%clk 0:00:48]} 26. Qd3 {[%clk 0:00:06]}  Qxf4+ {[%clk 0:00:48]} 27. Re3 {[%clk 0:00:02]}  Rd8 {[%clk 0:00:47]} 0-1


[Site "https://www.chess.com"]

[Event "Titled Tuesday Blitz April 05 Late 2022"]
[White "Trakru, Rohun"]
[Black "Mangialardo, Tiago Carvalho"]
[WhiteFideId "2097613"]
[BlackFideId "2130718"]
[WhiteElo "1746"]
[BlackElo "2037"]
[Result "1-0"]
[Round "10"]
[TimeControl "180+1"]
[Date "2022.04.06"]
[WhiteClock "0:01:05"]
[BlackClock "0:00:05"]

1. e4 {[%clk 0:03:00]}  e5 {[%clk 0:02:59]} 2. Nf3 {[%clk 0:03:00]}  Nc6 {[%clk 0:02:59]} 3. Bc4 {[%clk 0:03:01]}  Bc5 {[%clk 0:02:59]} 4. c3 {[%clk 0:03:00]}  Nf6 {[%clk 0:02:54]} 5. d4 {[%clk 0:03:00]}  exd4 {[%clk 0:02:54]} 6. b4 {[%clk 0:03:00]}  Bb6 {[%clk 0:02:49]} 7. e5 {[%clk 0:02:40]}  d5 {[%clk 0:02:33]} 8. exf6 {[%clk 0:02:33]}  dxc4 {[%clk 0:02:33]} 9. b5 {[%clk 0:02:26]}  Qxf6 {[%clk 0:01:41]} 10. bxc6 {[%clk 0:02:22]}  d3 {[%clk 0:01:41]} 11. O-O {[%clk 0:02:20]}  O-O {[%clk 0:01:40]} 12. Na3 {[%clk 0:01:57]}  Qxc6 {[%clk 0:01:31]} 13. Ne5 {[%clk 0:01:54]}  Qd5 {[%clk 0:00:24]} 14. Naxc4 {[%clk 0:01:53]}  Bf5 {[%clk 0:00:17]} 15. Bf4 {[%clk 0:01:43]}  f6 {[%clk 0:00:12]} 16. Nxb6 {[%clk 0:01:38]}  axb6 {[%clk 0:00:12]} 17. Nf3 {[%clk 0:01:38]}  Ra3 {[%clk 0:00:12]} 18. Qd2 {[%clk 0:01:36]}  Qc4 {[%clk 0:00:09]} 19. Rfc1 {[%clk 0:01:34]}  Re8 {[%clk 0:00:06]} 20. Be3 {[%clk 0:01:31]}  c5 {[%clk 0:00:04]} 21. h3 {[%clk 0:01:18]}  b5 {[%clk 0:00:04]} 22. Ne1 {[%clk 0:01:16]}  Rd8 {[%clk 0:00:03]} 23. Qb2 {[%clk 0:01:14]}  Rda8 {[%clk 0:00:02]} 24. g4 {[%clk 0:01:07]}  Be4 {[%clk 0:00:02]} 25. f3 {[%clk 0:01:07]}  Bc6 {[%clk 0:00:02]} 26. Qd2 {[%clk 0:01:06]}  Rc8 {[%clk 0:00:01]} 27. Qxd3 {[%clk 0:01:05]}  Qxd3 {[%clk 0:00:01]} 28. Nxd3 {[%clk 0:01:06]}  c4 {[%clk 0:00:01]} 29. Nb4 {[%clk 0:01:06]}  Bd7 {[%clk 0:00:01]} 30. Kf2 {[%clk 0:01:06]}  Be6 {[%clk 0:00:02]} 31. Bd4 {[%clk 0:01:06]}  Re8 {[%clk 0:00:02]} 32. Re1 {[%clk 0:01:07]}  Bf7 {[%clk 0:00:02]} 33. Rxe8+ {[%clk 0:01:07]}  Bxe8 {[%clk 0:00:03]} 34. Nd5 {[%clk 0:01:08]}  Kf7 {[%clk 0:00:04]} 35. Nc7 {[%clk 0:01:08]}  Bc6 {[%clk 0:00:04]} 36. Bc5 {[%clk 0:01:08]}  Ra7 {[%clk 0:00:04]} 37. Rb1 {[%clk 0:01:06]}  Rxa2+ {[%clk 0:00:03]} 38. Kg3 {[%clk 0:01:07]}  Rc2 {[%clk 0:00:04]} 39. Nxb5 {[%clk 0:01:07]}  Re2 {[%clk 0:00:04]} 40. Nd4 {[%clk 0:01:06]}  Rd2 {[%clk 0:00:04]} 41. Nxc6 {[%clk 0:01:07]}  bxc6 {[%clk 0:00:04]} 42. Rb7+ {[%clk 0:01:07]}  Ke6 {[%clk 0:00:03]} 43. Rc7 {[%clk 0:01:07]}  Kd5 {[%clk 0:00:03]} 44. Bd4 {[%clk 0:01:07]}  Rd3 {[%clk 0:00:02]} 45. Rxg7 {[%clk 0:01:07]}  Rxd4 {[%clk 0:00:02]} 46. cxd4 {[%clk 0:01:06]}  Kxd4 {[%clk 0:00:03]} 47. Rc7 {[%clk 0:01:05]}  Kc5 {[%clk 0:00:02]} 48. h4 {[%clk 0:01:03]}  c3 {[%clk 0:00:03]} 49. Ra7 {[%clk 0:01:04]}  Kc4 {[%clk 0:00:03]} 50. g5 {[%clk 0:01:03]}  f5 {[%clk 0:00:02]} 51. h5 {[%clk 0:01:02]}  c2 {[%clk 0:00:02]} 52. Ra1 {[%clk 0:01:02]}  Kd3 {[%clk 0:00:02]} 53. g6 {[%clk 0:01:02]}  hxg6 {[%clk 0:00:02]} 54. hxg6 {[%clk 0:01:03]}  Kd2 {[%clk 0:00:02]} 55. g7 {[%clk 0:01:03]}  c1=Q {[%clk 0:00:03]} 56. Rxc1 {[%clk 0:01:03]}  Kxc1 {[%clk 0:00:04]} 57. g8=Q {[%clk 0:01:03]}  c5 {[%clk 0:00:04]} 58. Qc4+ {[%clk 0:01:04]}  Kb2 {[%clk 0:00:05]} 59. Qxc5 {[%clk 0:01:05]} 1-0


[Site "https://www.chess.com"]

[Event "Titled Tuesday Blitz April 05 Late 2022"]
[White "Vasquez Schroeder, Rodrigo"]
[Black "Nepomniachtchi, Ian"]
[WhiteFideId "3400042"]
[BlackFideId "4168119"]
[WhiteElo "2561"]
[BlackElo "2740"]
[Result "0-1"]
[Round "10"]
[TimeControl "180+1"]
[Date "2022.04.05"]
[WhiteClock "0:02:07"]
[BlackClock "0:02:01"]

1. e4 {[%clk 0:03:00]}  e6 {[%clk 0:03:00]} 2. d4 {[%clk 0:03:00]}  d5 {[%clk 0:03:01]} 3. Nc3 {[%clk 0:03:00]}  Bb4 {[%clk 0:03:00]} 4. e5 {[%clk 0:03:01]}  Ne7 {[%clk 0:03:01]} 5. Bd2 {[%clk 0:03:00]}  c5 {[%clk 0:03:00]} 6. Nb5 {[%clk 0:02:59]}  Bxd2+ {[%clk 0:02:58]} 7. Qxd2 {[%clk 0:03:00]}  O-O {[%clk 0:02:58]} 8. c3 {[%clk 0:03:01]}  Nbc6 {[%clk 0:02:52]} 9. f4 {[%clk 0:03:00]}  cxd4 {[%clk 0:02:49]} 10. Nxd4 {[%clk 0:02:55]}  f6 {[%clk 0:02:49]} 11. Ngf3 {[%clk 0:02:53]}  fxe5 {[%clk 0:02:45]} 12. fxe5 {[%clk 0:02:53]}  Ng6 {[%clk 0:02:46]} 13. Qe3 {[%clk 0:02:52]}  Qc7 {[%clk 0:02:43]} 14. Nxc6 {[%clk 0:02:45]}  bxc6 {[%clk 0:02:42]} 15. Bd3 {[%clk 0:02:44]}  Nf4 {[%clk 0:02:40]} 16. O-O {[%clk 0:02:41]}  Nxd3 {[%clk 0:02:40]} 17. Qxd3 {[%clk 0:02:41]}  Qb6+ {[%clk 0:02:40]} 18. Kh1 {[%clk 0:02:41]}  Ba6 {[%clk 0:02:40]} 19. Qd2 {[%clk 0:02:30]}  Bxf1 {[%clk 0:02:40]} 20. Rxf1 {[%clk 0:02:31]}  Rf5 {[%clk 0:02:40]} 21. h3 {[%clk 0:02:28]}  Raf8 {[%clk 0:02:40]} 22. Qe2 {[%clk 0:02:25]}  Rf4 {[%clk 0:02:35]} 23. Rd1 {[%clk 0:02:18]}  h6 {[%clk 0:02:34]} 24. Kh2 {[%clk 0:02:18]}  a5 {[%clk 0:02:33]} 25. Rd4 {[%clk 0:02:16]}  c5 {[%clk 0:02:32]} 26. Rxf4 {[%clk 0:02:14]}  Rxf4 {[%clk 0:02:33]} 27. Qd2 {[%clk 0:02:15]}  Rf8 {[%clk 0:02:32]} 28. b3 {[%clk 0:02:15]}  a4 {[%clk 0:02:32]} 29. b4 {[%clk 0:02:14]}  a3 {[%clk 0:02:28]} 30. bxc5 {[%clk 0:02:12]}  Qxc5 {[%clk 0:02:29]} 31. Nd4 {[%clk 0:02:12]}  Rc8 {[%clk 0:02:27]} 32. Nxe6 {[%clk 0:02:12]}  Qc4 {[%clk 0:02:05]} 33. Qc2 {[%clk 0:02:07]}  Qe4 {[%clk 0:02:01]} 0-1


[Site "https://www.chess.com"]

[Event "Titled Tuesday Blitz April 05 Late 2022"]
[White "Villegas, Pierre"]
[Black "Fishbein, Alexander"]
[WhiteFideId "654183"]
[BlackFideId "2000377"]
[WhiteElo "2386"]
[BlackElo "2442"]
[Result "1-0"]
[Round "10"]
[TimeControl "180+1"]
[Date "2022.04.05"]
[WhiteClock "0:00:52"]
[BlackClock "0:00:35"]

1. d4 {[%clk 0:03:00]}  Nf6 {[%clk 0:02:59]} 2. c4 {[%clk 0:03:01]}  g6 {[%clk 0:03:00]} 3. Nc3 {[%clk 0:03:01]}  Bg7 {[%clk 0:03:00]} 4. e4 {[%clk 0:03:00]}  O-O {[%clk 0:03:00]} 5. Nge2 {[%clk 0:03:01]}  d6 {[%clk 0:03:01]} 6. Ng3 {[%clk 0:03:01]}  a6 {[%clk 0:02:57]} 7. Be2 {[%clk 0:03:00]}  b5 {[%clk 0:02:45]} 8. cxb5 {[%clk 0:02:57]}  axb5 {[%clk 0:02:44]} 9. Bxb5 {[%clk 0:02:57]}  h5 {[%clk 0:02:44]} 10. O-O {[%clk 0:02:52]}  h4 {[%clk 0:02:43]} 11. Nge2 {[%clk 0:02:52]}  h3 {[%clk 0:02:43]} 12. g3 {[%clk 0:02:51]}  c6 {[%clk 0:02:35]} 13. Bd3 {[%clk 0:02:47]}  Nbd7 {[%clk 0:02:34]} 14. f3 {[%clk 0:02:47]}  e5 {[%clk 0:02:28]} 15. Be3 {[%clk 0:02:46]}  Qb6 {[%clk 0:02:24]} 16. Qd2 {[%clk 0:02:40]}  c5 {[%clk 0:02:12]} 17. d5 {[%clk 0:02:26]}  Ba6 {[%clk 0:02:11]} 18. Bxa6 {[%clk 0:02:22]}  Qxa6 {[%clk 0:02:10]} 19. a4 {[%clk 0:02:19]}  Rfb8 {[%clk 0:02:06]} 20. Nb5 {[%clk 0:02:10]}  Ne8 {[%clk 0:01:58]} 21. Nec3 {[%clk 0:02:10]}  Nb6 {[%clk 0:01:43]} 22. b3 {[%clk 0:02:08]}  Nc8 {[%clk 0:01:40]} 23. Bh6 {[%clk 0:01:49]}  Na7 {[%clk 0:01:34]} 24. Bxg7 {[%clk 0:01:43]}  Kxg7 {[%clk 0:01:33]} 25. f4 {[%clk 0:01:43]}  Nxb5 {[%clk 0:01:23]} 26. Nxb5 {[%clk 0:01:44]}  Rxb5 {[%clk 0:01:07]} 27. axb5 {[%clk 0:01:43]}  Qxa1 {[%clk 0:01:07]} 28. Rxa1 {[%clk 0:01:43]}  Rxa1+ {[%clk 0:01:08]} 29. Kf2 {[%clk 0:01:43]}  Nf6 {[%clk 0:01:08]} 30. Qe2 {[%clk 0:01:22]}  Rb1 {[%clk 0:01:02]} 31. fxe5 {[%clk 0:01:19]}  dxe5 {[%clk 0:01:00]} 32. g4 {[%clk 0:01:03]}  Rxb3 {[%clk 0:00:58]} 33. g5 {[%clk 0:00:59]}  Nh5 {[%clk 0:00:56]} 34. d6 {[%clk 0:00:56]}  Kf8 {[%clk 0:00:37]} 35. d7 {[%clk 0:00:52]}  Ke7 {[%clk 0:00:36]} 36. d8=Q+ {[%clk 0:00:52]}  Kxd8 {[%clk 0:00:36]} 37. Qd1+ {[%clk 0:00:52]}  Kc7 {[%clk 0:00:35]} 38. Qxb3 {[%clk 0:00:52]} 1-0


[Site "https://www.chess.com"]

[Event "Titled Tuesday Blitz April 05 Late 2022"]
[White "Vusatiuk, Vladimir"]
[Black "Szente Varga, Fruzsina"]
[WhiteFideId "14118610"]
[BlackFideId "712264"]
[WhiteElo "2570"]
[BlackElo "2227"]
[Result "1-0"]
[Round "10"]
[TimeControl "180+1"]
[Date "2022.04.06"]
[WhiteClock "0:00:10"]
[BlackClock "0:00:09"]

1. d4 {[%clk 0:02:57]}  Nf6 {[%clk 0:02:58]} 2. c4 {[%clk 0:02:57]}  g6 {[%clk 0:02:58]} 3. Nc3 {[%clk 0:02:58]}  Bg7 {[%clk 0:02:55]} 4. e4 {[%clk 0:02:58]}  d6 {[%clk 0:02:55]} 5. Nf3 {[%clk 0:02:58]}  O-O {[%clk 0:02:54]} 6. Be2 {[%clk 0:02:59]}  e5 {[%clk 0:02:45]} 7. O-O {[%clk 0:02:59]}  Nc6 {[%clk 0:02:42]} 8. d5 {[%clk 0:02:58]}  Ne7 {[%clk 0:02:42]} 9. Ne1 {[%clk 0:02:58]}  Nd7 {[%clk 0:02:41]} 10. Nd3 {[%clk 0:02:57]}  f5 {[%clk 0:02:41]} 11. f3 {[%clk 0:02:58]}  f4 {[%clk 0:02:41]} 12. b4 {[%clk 0:02:55]}  g5 {[%clk 0:02:35]} 13. Bd2 {[%clk 0:02:42]}  Rf7 {[%clk 0:02:16]} 14. Be1 {[%clk 0:02:38]}  h5 {[%clk 0:02:08]} 15. Kh1 {[%clk 0:02:37]}  Bf8 {[%clk 0:02:08]} 16. Rg1 {[%clk 0:02:36]}  Nf6 {[%clk 0:01:58]} 17. c5 {[%clk 0:02:35]}  g4 {[%clk 0:01:49]} 18. g3 {[%clk 0:02:32]}  fxg3 {[%clk 0:01:39]} 19. Bxg3 {[%clk 0:02:18]}  Ng6 {[%clk 0:01:34]} 20. cxd6 {[%clk 0:01:38]}  cxd6 {[%clk 0:01:35]} 21. f4 {[%clk 0:01:34]}  h4 {[%clk 0:01:13]} 22. f5 {[%clk 0:01:14]}  hxg3 {[%clk 0:01:12]} 23. fxg6 {[%clk 0:01:14]}  Rg7 {[%clk 0:01:12]} 24. Rxg3 {[%clk 0:01:10]}  Rxg6 {[%clk 0:01:12]} 25. Nf2 {[%clk 0:01:05]}  Nh5 {[%clk 0:00:50]} 26. Rg1 {[%clk 0:00:59]}  Qh4 {[%clk 0:00:22]} 27. Nxg4 {[%clk 0:00:58]}  Bd7 {[%clk 0:00:19]} 28. Nh6+ {[%clk 0:00:36]}  Bxh6 {[%clk 0:00:20]} 29. Rxg6+ {[%clk 0:00:35]}  Kh7 {[%clk 0:00:20]} 30. Bxh5 {[%clk 0:00:32]}  Bf4 {[%clk 0:00:21]} 31. Qe2 {[%clk 0:00:22]}  Rc8 {[%clk 0:00:20]} 32. Rag1 {[%clk 0:00:16]}  Bh6 {[%clk 0:00:16]} 33. Qg2 {[%clk 0:00:10]}  Qe7 {[%clk 0:00:09]} 34. Rxh6+ {[%clk 0:00:10]}  Kxh6 {[%clk 0:00:09]} 35. Qg6# {[%clk 0:00:10]} 1-0


[Site "https://www.chess.com"]